Cogmind - Beta 12 @@@ ROGUE MODE // 2024.02.11 @ 23:01:15 Player: Treadwheel Result: Destroyed by Y-45 Defender with Heavy Assault Rifle Performance ------------- Evolutions (2) 1000 Regions Visited (8) 1600 Robots Destroyed (93) 465 Value Destroyed (2947) 2947 Prototype IDs (28) 560 Alien Tech Used (0) 0 Bonus (929) 929 TOTAL SCORE: 7501 Bonus ------- High Alert Combat Kills 13 Follower Combat Kills 63 Entered Garrisons 200 Used RIF Installer 500 Aligned with FarCom 300 Friendly Fire -147 Cogmind --------- Core Integrity 0/550 Matter 37/300 Energy 160/160 System Corruption 7% Temperature Cool (9) Movement Flying (28) Location -8/Garrison Parts ------- > --- POWER (1) -------- Light Nuclear Core > --- PROPULSION (4) --- Flight Unit Flight Unit Surge Thruster Surge Thruster > --- UTILITY (4) ------ Cryofiber Web Trap Scanner Improved Sensor Array > --- WEAPON (2) ------- Light Assault Rifle Light Assault Rifle > --- INVENTORY (5) ---- Relay Coupler [Grunt] (26) Relay Coupler [Hunter] (13) Variable Charge Gun Peak State ------------ > --- POWER ------------ Deuterium Engine > --- PROPULSION ------- Light Treads Light Treads Light Treads > --- UTILITY ---------- High-capacity Storage Unit Light Armor Plating Improved Thermal Shield Relay Coupler [Brawler] > --- WEAPON ----------- Wave Gun Long-range Proton Cannon > --- INVENTORY -------- Nuclear Core Cryofiber Web Improved Coolant Injector Trap Scanner Visual Processing Unit Improved Sensor Array Relay Coupler [Grunt] Relay Coupler [Grunt] Relay Coupler [Demolisher] Relay Coupler [Hunter] Advanced Drone Bay Variable Charge Gun Guided Plasma Cannon Minigun Heavy Shock Bomb Launcher Datajack Makeshift Hammer Spear [Rating: 37] Favorites ----------- Power Deuterium Engine Engine Deuterium Engine Power Core Nuclear Core Propulsion Light Treads Treads Light Treads Leg Aluminum Leg Flight Unit Flight Unit Utility Large Storage Unit Device Structural Scanner Storage Large Storage Unit Processor Signal Interpreter Hackware Hacking Suite Protection Hardened Light Armor Plating Weapon Gatling Laser Energy Gun Gatling Laser Energy Cannon Particle Cannon Ballistic Gun Assault Rifle Ballistic Cannon Flak Cannon Launcher Mini Grenade Launcher Special Weapon Plasma Cutter Impact Weapon Flail Piercing Weapon Spear Special Melee Weapon Datajack Build | -11 -10 -10 -9 -9 -9 -8 -8 -8 ------- Run | Jun Mat Min Mat Min Exi Min Mat Gar Slots Evolved 4 | . . . 2 . . . 2 . Power . | . . . . . . . . . Propulsion 2 | . . . 1 . . . 1 . Utility 2 | . . . 1 . . . 1 . Weapon . | . . . . . . . . . Parts Attached 186 | 9 22 5 52 5 5 10 28 50 Power 18 | 1 2 . 7 1 . 1 1 5 Engine 14 | 1 2 . 7 1 . 1 1 1 Core 4 | . . . . . . . . 4 Reactor . | . . . . . . . . . Propulsion 41 | 2 2 2 16 . . 2 6 11 Treads 28 | . . 2 13 . . 2 6 5 Leg 6 | 2 2 . 2 . . . . . Wheel . | . . . . . . . . . Hover . | . . . . . . . . . Flight 7 | . . . 1 . . . . 6 Utility 50 | 3 2 1 12 2 5 2 11 12 Device 26 | 2 1 . 5 2 3 2 4 7 Storage 10 | 1 1 1 3 . 2 . 2 . Processor 2 | . . . 1 . . . 1 . Hackware 4 | . . . . . . . 2 2 Protection 8 | . . . 3 . . . 2 3 Artifact . | . . . . . . . . . Weapon 77 | 3 16 2 17 2 . 5 10 22 Energy Gun 18 | 2 5 . 4 2 . 2 1 2 Energy Cannon 11 | . . . 2 . . 1 2 6 Ballistic Gun 16 | 1 4 1 6 . . . . 4 Ballistic Cannon 5 | . . . . . . 1 3 1 Launcher 2 | . . . . . . 1 . 1 Special Weapon 1 | . . . 1 . . . . . Impact Weapon 16 | . 7 . 4 . . . 2 3 Slashing Weapon . | . . . . . . . . . Piercing Weapon 4 | . . . . . . . 2 2 Special Melee Weapon 4 | . . 1 . . . . . 3 Unidentified Prototypes 3 | . . . 3 . . . . . Parts Lost 28 | . 1 1 6 . . 3 2 15 Power 4 | . 1 . . . . 1 . 2 Propulsion 11 | . . 1 1 . . 2 1 6 Utility 8 | . . . 4 . . . . 4 Weapon 5 | . . . 1 . . . 1 3 Highest Loss Streak 9 | . 1 1 2 . . 2 1 9 To Critical Strikes . | . . . . . . . . . Average Slot Usage (%) 98 | . 100 99 98 100 99 99 99 91 Engine 10 | . 14 14 11 11 11 11 8 6 Treads 30 | . . 26 32 33 33 32 35 29 Leg 1 | . 28 1 . . . . . . Device 8 | . 14 14 9 11 10 11 4 2 Storage 10 | . 14 14 11 11 11 11 9 7 Processor 5 | . . . . 11 11 11 9 7 Hackware 2 | . . . . . . . 9 11 Protection 3 | . . . 11 . . . 3 4 Energy Gun 9 | . 11 14 9 11 22 14 2 . Energy Cannon 4 | . . . 5 10 . . 5 5 Ballistic Gun 4 | . 10 13 6 . . . . 5 Ballistic Cannon 2 | . . . . . . 7 8 2 Naked Turns 41 | . . . . . . . . 41 Heaviest Build 66 | 12 18 18 44 40 40 46 61 66 Greatest Support 83 | 20 20 40 63 63 63 63 83 80 Greatest Overweight (x) 3 | 3 . . 1 . . . . 3 Average Overweight (x) . | . . . . . . . . . Largest Inventory Capacity 35 | 8 8 8 15 15 35 15 20 20 Average Capacity 13 | 7 8 8 12 15 15 15 16 18 Most Carried 20 | 7 8 8 15 15 15 15 20 20 Average Carried 13 | 4 7 7 11 14 14 14 15 17 Final Capacity 20 | 8 8 8 15 15 15 15 20 5 Final Carried 20 | 7 8 8 15 15 15 12 20 3 Class Distribution -------------------- 69% | Mutant 15% | Scavenger-Mutant 13% | Hacker-Mutant Dominant Class ---------------- Mutant | -10/Materials Mutant | -10/Mines Mutant | -9/Materials Mutant | -9/Mines Mutant | -9/Exiles Mutant | -8/Mines Hacker-Mutant | -8/Materials Hacker-Mutant | -8/Garrison Resources | -11 -10 -10 -9 -9 -9 -8 -8 -8 ----------- Run | Jun Mat Min Mat Min Exi Min Mat Gar Matter Collected 2225 | 262 204 194 571 50 30 185 424 305 Remotely . | . . . . . . . . . Salvage Created 2644 | 127 414 137 667 308 . 259 572 160 Parts 135 | 5 10 11 37 14 . 15 24 19 Haulers Intercepted . | . . . . . . . . . Recyclers Shooed . | . . . . . . . . . Parts Field Recycled . | . . . . . . . . . Retrieved Matter . | . . . . . . . . . Parts Self-Destructed . | . . . . . . . . . Prevented . | . . . . . . . . . Kills | -11 -10 -10 -9 -9 -9 -8 -8 -8 ------- Run | Jun Mat Min Mat Min Exi Min Mat Gar Combat Hostiles Destroyed 84 | . 10 11 18 9 . 12 13 11 Melee 13 | . 5 . 4 . . . 3 1 Guns 29 | . . 11 7 4 . 6 . 1 Cannons 25 | . . . 4 5 . 4 7 5 AOE 5 | . . . . . . 1 . 4 Classes Destroyed 11 | 2 3 1 1 . . 1 1 2 Tunneler 3 | 3 . . . . . . . . Recycler 4 | 1 2 . . 1 . . . . Watcher 6 | . 1 . 3 . . . 2 . Swarmer 35 | . 3 6 7 4 . 7 . 8 Cutter 2 | . . . . . . . . 2 Grunt 27 | . 7 . 4 5 . 4 7 . Brawler 1 | . . . . . . . . 1 Duelist 2 | . . . . . . 2 . . Sentry 12 | . . . 7 . . . 5 . Hunter 1 | . . . . . . . 1 . Assembled 5 | . . 5 . . . . . . Best Kill Streak 5 | 3 4 3 4 4 . 3 3 5 Combat Bots Only 5 | . 4 3 4 4 . 3 3 5 Max Kills in Single Turn 4 | 1 1 1 1 1 . 3 1 4 Gunslinging . | . . . . . . . . . Exploded 4 | . . . . . . 1 . 4 Melee 1 | . 1 . 1 . . . 1 1 Uniques/NPCs Destroyed . | . . . . . . . . . Combat | -11 -10 -10 -9 -9 -9 -8 -8 -8 -------- Run | Jun Mat Min Mat Min Exi Min Mat Gar Damage Taken 5443 | . 414 312 1273 263 . 335 761 2085 Core 842 | . 54 28 127 52 . 28 102 451 Absorbed by Shields . | . . . . . . . . . Redirected to Shielding 4 | . . . 4 . . . . . Regen/Repaired (Parts) 640 | . . . 308 . . . 332 . Core Remaining (%) 71 | 100 . 67 . . . 48 . . Volleys Fired 167 | 11 2 26 39 15 . 19 28 27 Largest 2 | 2 1 2 2 2 . 2 2 2 Hottest 148 | 70 65 85 124 148 . 124 124 120 Shots Fired 318 | 22 2 50 78 30 . 31 56 49 Gun 183 | 22 2 50 55 15 . 13 6 20 Cannon 128 | . . . 19 15 . 16 50 28 Launcher 3 | . . . . . . 2 . 1 Special 4 | . . . 4 . . . . . Kinetic 130 | 11 . 26 27 . . 10 28 28 Thermal 185 | 11 2 24 51 30 . 19 28 20 Explosive 3 | . . . . . . 2 . 1 Electromagnetic . | . . . . . . . . . Robot Hit Streak 11 | 7 8 7 11 6 . 7 11 7 Robot Miss Streak 8 | 4 2 8 6 2 . 4 7 4 Penetration Max . | . . . . . . . . . Secondary Targets 2 | . . 1 1 . . . . . Max Gunslinging Chain 1 | . . 1 1 . . . . . Shots Hit Robots 297 | 13 29 35 71 22 . 18 63 46 Core Hits 161 | 6 5 28 29 12 . 23 40 18 Critical Kills 2 | 1 . . . . . . . 1 Critical Parts Destroyed 7 | . 4 . 2 . . . 1 . Critical Strikes 12 | 3 4 . 2 . . 1 1 1 Burn 3 | 2 . . . . . 1 . . Destroy 1 | 1 . . . . . . . . Smash 8 | . 4 . 2 . . . 1 1 Melee Attacks 128 | . 42 2 28 . . . 32 24 Impact 104 | . 42 . 28 . . . 19 15 Slashing . | . . . . . . . . . Piercing 13 | . . . . . . . 13 . Sneak Attacks 4 | . 2 . . . . . . 2 Combat Hostiles 2 | . . . . . . . . 2 Follow-up Attacks 19 | . 6 . 6 . . . 7 . Damage Inflicted 6572 | 130 1033 318 1391 400 . 599 1575 1126 Guns 1777 | 130 22 318 632 213 . 183 109 170 Cannons 1776 | . . . 224 182 . 328 709 333 Explosions 290 | . . . . . . 88 . 202 Melee 2701 | . 1011 . 513 . . . 756 421 Ramming 6 | . . . . 5 . . 1 . Kinetic 1292 | 44 . 116 293 . . 159 459 221 Thermal 2283 | 86 22 202 585 395 . 352 359 282 Explosive 290 | . . . . . . 88 . 202 Electromagnetic . | . . . . . . . . . Impact 2485 | . 1011 . 513 . . . 540 421 Slashing . | . . . . . . . . . Piercing 216 | . . . . . . . 216 . Highest Corruption 7 | . 1 1 . . . . . 7 Average Corruption 2 | . 1 1 . . . . . 6 Corruption Purged . | . . . . . . . . . Corruption Blocked . | . . . . . . . . . Effects 16 | . 1 6 . . . . . 9 Message Errors 2 | . . 1 . . . . . 1 Matter Fused 4 | . . 3 . . . . . 1 Energy Discharges 5 | . . 1 . . . . . 4 Parts Rejected 1 | . . . . . . . . 1 Parts Fused 1 | . . 1 . . . . . . Data Loss (minor) 2 | . 1 . . . . . . 1 Misfires 1 | . . . . . . . . 1 Overload Shots . | . . . . . . . . . Overflow Damage 613 | . 308 . 148 . . . 92 65 Projectiles 5 | . . . . . . . . 5 Explosions 35 | . . . . . . . . 35 Melee 573 | . 308 . 148 . . . 92 25 Knockbacks 25 | . 6 . 3 . . . 14 2 Impact 13 | . 6 . 3 . . . 4 . Kinetic 12 | . . . . . . . 10 2 Secondary . | . . . . . . . . . Self-Inflicted Damage 140 | . . . . . . 15 . 125 Shots 2 | . . . . . . 1 . 1 Rammed 2 | . . . 1 . . . 1 . Targets Rammed 3 | . . . 1 1 . . 1 . Kicked . | . . . . . . . . . Crushed 1 | . . . . 1 . . . . Highest Temperature 357 | 70 52 162 357 333 . 312 195 181 Average Temperature 79 | 25 26 58 81 146 . 91 61 70 Received Heat Transfer 1350 | . 195 . 351 60 . 45 405 294 Effects 5 | . . . 3 2 . . . . Interference 5 | . . . 3 2 . . . . Siege Activations . | . . . . . . . . . Robots Corrupted . | . . . . . . . . . Combat Hostiles . | . . . . . . . . . Parts Fried 18 | . 11 . 6 . . . 1 . Impact Corruptions 30 | . 16 . 8 . . . 4 2 Robots Melted 1 | . . . . . . 1 . . Combat Hostiles 1 | . . . . . . 1 . . Parts Melted 6 | . . . 3 . . 3 . . Heat Transferred 4619 | 407 30 255 1146 819 . 886 620 456 Parts Sabotaged . | . . . . . . . . . Parts Stolen . | . . . . . . . . . Parts Stripped . | . . . . . . . . . Power Chain Reactions . | . . . . . . . . . Missiles Intercepted . | . . . . . . . . . Alert | -11 -10 -10 -9 -9 -9 -8 -8 -8 ------- Run | Jun Mat Min Mat Min Exi Min Mat Gar Peak Influence 541 | 20 240 176 176 113 . 267 201 541 Initial 43 | . 13 36 . 43 . . 16 30 Average 89 | 4 73 42 68 29 . 124 48 338 Maximum Alert Level 2 | . 1 . . . . 1 1 2 Low Security (%) 90 | 100 86 100 100 100 . 88 98 30 Level 1 3 | . 13 . . . . 11 1 8 Level 2 6 | . . . . . . . . 60 Level 3 . | . . . . . . . . . Level 4 . | . . . . . . . . . Level 5 . | . . . . . . . . . High Security . | . . . . . . . . . Max Security . | . . . . . . . . . Squads Dispatched 12 | . 2 . 5 1 . . 4 . Investigation 3 | . 1 . 1 1 . . . . Extermination . | . . . . . . . . . Reinforcement 6 | . 1 . 4 . . . 1 . Assault . | . . . . . . . . . Garrison 3 | . . . . . . . 3 . Intercept . | . . . . . . . . . Searches Triggered . | . . . . . . . . . Construction Impeded 1 | . . . 1 . . . . . Haulers Reinforced . | . . . . . . . . . Active Scanning Responses . | . . . . . . . . . Cargo Convoy Interrupts . | . . . . . . . . . Stealth | -11 -10 -10 -9 -9 -9 -8 -8 -8 --------- Run | Jun Mat Min Mat Min Exi Min Mat Gar Distress Signals 6 | . . . 3 . . . 3 . Communications Jammed . | . . . . . . . . . Distress Signals . | . . . . . . . . . Times Spotted 125 | . 15 10 28 11 . 16 25 20 Peak Tracking Total 6 | . 6 3 4 4 . 4 4 5 Tactical Retreats 14 | . 2 . 4 1 . 2 . 5 Traps | -11 -10 -10 -9 -9 -9 -8 -8 -8 ------- Run | Jun Mat Min Mat Min Exi Min Mat Gar Traps Triggered 7 | . . . 3 . . . 2 2 Indirectly . | . . . . . . . . . Trap Hack Attempts . | . . . . . . . . . Triggered . | . . . . . . . . . Disarmed . | . . . . . . . . . Reprogrammed . | . . . . . . . . . Reused . | . . . . . . . . . Traps Extracted . | . . . . . . . . . Installed . | . . . . . . . . . Triggered 1 | . . . . . . . . 1 Machines | -11 -10 -10 -9 -9 -9 -8 -8 -8 ---------- Run | Jun Mat Min Mat Min Exi Min Mat Gar Machines Disabled 5 | . . . 1 . . . . 4 Max in Single Turn 2 | . . . 1 . . . . 2 Garrison Relay 2 | . . . . . . . . 2 Phase Generator 1 | . . . . . . . . 1 Machines Repaired . | . . . . . . . . . Machines Sabotaged . | . . . . . . . . . Overloaded Fab Kills . | . . . . . . . . . Hacking | -11 -10 -10 -9 -9 -9 -8 -8 -8 --------- Run | Jun Mat Min Mat Min Exi Min Mat Gar Machines Accessed 35 | . 4 1 14 1 1 1 12 1 Terminals 22 | . 3 1 9 . . 1 7 1 Fabricators . | . . . . . . . . . Repair Stations 4 | . . . 2 . . . 2 . Recycling Units 3 | . 1 . 1 . . . 1 . Scanalyzers 3 | . . . 2 . . . 1 . Garrison Access 1 | . . . . . . . 1 . Total Hacks 130 | . 10 1 51 1 1 4 60 2 Successful 81 | . 5 . 30 1 1 1 42 1 Failed 49 | . 5 1 21 . . 3 18 1 Catastrophic 13 | . 2 1 6 . . 1 2 1 Database Lockouts . | . . . . . . . . . Manual 9 | . 3 1 3 . 2 . . . Terminals 74 | . 9 1 28 . . 4 30 2 Fabricators . | . . . . . . . . . Repair Stations 23 | . . . 10 . . . 13 . Recycling Units 6 | . 1 . 2 . . . 3 . Scanalyzers 23 | . . . 11 . . . 12 . Garrison Access 2 | . . . . . . . 2 . Terminal Hacks 36 | . 5 . 13 1 1 1 14 1 Record 6 | . . . 5 . . . 1 . Robot Analysis 3 | . 1 . . . . . 2 . Prototype ID Bank 1 | . . . 1 . . . . . Open Door 1 | . . . . 1 . . . . Level Access Points 1 | . 1 . . . . . . . Branch Access Points 2 | . . . 1 . . . 1 . Emergency Access Points 1 | . 1 . . . . . . . Alert Level 4 | . 1 . 2 . . . 1 . Unreport Threat 2 | . 1 . 1 . . . . . Locate Traps 2 | . . . . . . . 2 . Dispatch Records 2 | . . . 1 . . . 1 . Investigation Status 1 | . . . . . . . 1 . Reinforcement Status 1 | . . . . . . . 1 . Assault Status 1 | . . . . . . . 1 . Recall Investigation 1 | . . . . . . . 1 . Hauler Manifests 1 | . . . 1 . . . . . Registered Prototypes 2 | . . . 1 . . . 1 . Zone Layout 2 | . . . . . . 1 1 . Garrison Registry 1 | . . . . . . . . 1 EX-Prototype ID Bank 1 | . . . . . 1 . . . Fabricator Hacks . | . . . . . . . . . Repair Station Hacks 20 | . . . 7 . . . 13 . Scan Component 10 | . . . 3 . . . 7 . Repair 9 | . . . 3 . . . 6 . Refit 1 | . . . 1 . . . . . Recycling Unit Hacks 2 | . . . . . . . 2 . Report Inventory 1 | . . . . . . . 1 . Retrieve Components 1 | . . . . . . . 1 . Scanalyzer 21 | . . . 10 . . . 11 . Insert Component 9 | . . . 5 . . . 4 . Analyze 12 | . . . 5 . . . 7 . Garrison Access Hacks 2 | . . . . . . . 2 . Unlock Access 1 | . . . . . . . 1 . Coupler Status 1 | . . . . . . . 1 . Unauthorized Hacks . | . . . . . . . . . Terminals . | . . . . . . . . . Fabricators . | . . . . . . . . . Repair Stations . | . . . . . . . . . Recycling Units . | . . . . . . . . . Scanalyzers . | . . . . . . . . . Garrison Access . | . . . . . . . . . Data Cores Recovered . | . . . . . . . . . Used . | . . . . . . . . . Hacking Detections 33 | . 4 1 14 . . 1 12 1 Full Trace Events 5 | . 1 . 2 . . . 1 1 Feedback Events 1 | . 1 . . . . . . . Corruption 1 | . 1 . . . . . . . Feedback Blocked . | . . . . . . . . . Robot Schematics Acquired . | . . . . . . . . . Robots Built . | . . . . . . . . . Authchips . | . . . . . . . . . Time . | . . . . . . . . . Total Robot Build Rating . | . . . . . . . . . Part Schematics Acquired 9 | . . . 5 . . . 4 . Parts Built . | . . . . . . . . . Authchips . | . . . . . . . . . Time . | . . . . . . . . . Total Part Build Rating . | . . . . . . . . . Parts Repaired 9 | . . . 3 . . . 6 . Time 280 | . . . 84 . . . 196 . Parts Recycled . | . . . . . . . . . Recycled Matter . | . . . . . . . . . Retrieved Matter . | . . . . . . . . . Retrieved Components 7 | . . . . . . . 7 . Parts Scanalyzed 9 | . . . 5 . . . 4 . Part Schematics Acquired 9 | . . . 5 . . . 4 . Parts Damaged . | . . . . . . . . . Bothacking | -11 -10 -10 -9 -9 -9 -8 -8 -8 ------------ Run | Jun Mat Min Mat Min Exi Min Mat Gar Used RIF Installer 1 | . . . . . . . . 1 Robots Hacked 1 | . . . . . . . . 1 Non-combat . | . . . . . . . . . Combat 1 | . . . . . . . . 1 Robot Hacks Applied 2 | . . . . . . . . 2 overwrite_iff 1 | . . . . . . . . 1 formatsys_high 1 | . . . . . . . . 1 Relay Couplers Released 8 | . . . . . . . . 8 Machine Destruction 8 | . . . . . . . . 8 Attached 2 | . . . . . . . . 2 Fabnet Peak Effective % . | . . . . . . . . . Robots Rewired . | . . . . . . . . . Allies Hacked . | . . . . . . . . . Hacks Repelled . | . . . . . . . . . Allies | -11 -10 -10 -9 -9 -9 -8 -8 -8 -------- Run | Jun Mat Min Mat Min Exi Min Mat Gar Total Allies 4 | . . . . 3 . . . 1 Largest Group 3 | . . . . 3 3 3 . 1 Highest-Rated Group 40 | . . . . 40 40 40 . 10 Highest-Rated Ally 16 | . . . . 16 16 16 . 10 Total Orders . | . . . . . . . . . Ally Attacks 27 | . . . . . . 24 . 3 Total Damage 327 | . . . . . . 272 . 55 Kills 5 | . . . . . . 5 . . Allies Corrupted . | . . . . . . . . . Allies Melted . | . . . . . . . . . Intel | -11 -10 -10 -9 -9 -9 -8 -8 -8 ------- Run | Jun Mat Min Mat Min Exi Min Mat Gar Robot Analysis Total 3 | . 1 . . . . . 2 . Derelict Logs Recovered 2 | . . 1 . 1 . . . . Drone Launches 2 | . . . . . . . . 2 Drone Recoveries . | . . . . . . . . . Exploration | -11 -10 -10 -9 -9 -9 -8 -8 -8 ------------- Run | Jun Mat Min Mat Min Exi Min Mat Gar Turns Passed 11741 | 146 703 1078 2925 1768 837 1020 2076 1188 Spaces Moved 6363 | 72 399 605 1507 1006 504 564 954 752 Core 97 | 15 . . . . . . . 82 Treads 5605 | . . 571 1507 1006 504 564 954 499 Legs 490 | 57 399 34 . . . . . . Wheels . | . . . . . . . . . Hover . | . . . . . . . . . Flight 171 | . . . . . . . . 171 Fastest Speed 28 | 50 120 120 160 160 160 160 160 28 Average Speed 152 | 131 120 157 160 160 160 160 160 119 Slowest Speed 400 | 200 120 160 240 160 160 160 160 400 Overloaded Moves . | . . . . . . . . . Propulsion Burnouts . | . . . . . . . . . Robots Hopped 2 | . . . . . . . . 2 Cave-ins Triggered . | . . . . . . . . . Exploration Rate (%) 70 | 4 44 98 98 93 94 85 63 54 Regions Visited 8 Branch Regions 4 Pre-discovered Areas 2 | . . 2 . . . . . . Known Exits Taken 6 | . . 1 1 1 1 1 1 . Unknown Exits Taken 2 | 1 1 . . . . . . . Scrap Searched 5 | . . 3 . 1 . 1 . . Spaces Dug . | . . . . . . . . . Terrain Destroyed 119 | . . . . . . 22 10 87 Melee . | . . . . . . . . . Projectile 13 | . . . . . . 1 10 2 AOE 106 | . . . . . . 21 . 85 Terrain Rammed . | . . . . . . . . . Walls Destroyed . | . . . . . . . . . Machines Disabled . | . . . . . . . . . Actions | -11 -10 -10 -9 -9 -9 -8 -8 -8 --------- Run | Jun Mat Min Mat Min Exi Min Mat Gar Total 7940 | 99 562 679 1904 1134 540 646 1411 965 Wait 906 | . 85 34 220 94 2 51 340 80 Move 6351 | 71 398 604 1506 1005 503 563 953 748 Hop 2 | . . . . . . . . 2 Pick Up 111 | 8 8 3 30 6 18 1 22 15 Fast Attach 43 | 6 . . 11 1 1 1 5 18 Attach 34 | 1 1 1 8 . 3 2 4 14 Detach 9 | . . . 3 . 2 . . 4 Swap 109 | 2 21 4 33 4 1 7 19 18 Drop 92 | . 11 3 31 8 9 2 14 14 Fire 167 | 11 2 26 39 15 . 19 28 27 Melee 109 | . 36 2 22 . . . 25 24 Ram . | . . . . . . . . . Kick . | . . . . . . . . . Crush 3 | . . . 1 1 . . 1 . Escape Stasis . | . . . . . . . . . Rewire 4 | . . 2 . . 1 . . 1 Trap . | . . . . . . . . . Miscellaneous . | . . . . . . . . . Route ------- -11/Junkyard -10/Materials (discovered 4 exits: *Mat x3 / *Min) -10/Mines (discovered 2 exits: *Mat x2) -9/Materials (discovered 5 exits: *Mat x3 / *Min x2) -9/Mines (discovered 4 exits: *Mat x2 / *Exi / *Zio) -9/Exiles (discovered 2 exits: *Min x2) -8/Mines (discovered 2 exits: *Mat x2) -8/Materials (discovered 5 exits: *Fac x2 / *Sto x2 / Gar) -8/Garrison (discovered 3 exits: *Mat x3) History --------- Turn | Location | Event 31 | -11/Junkyard | Discovered new exit (range 16) 147 | -11/Junkyard | Entered Materials 310 | -10/Materials | Build established: Mutant 646 | -10/Materials | Discovered new exit (range 8) 777 | -10/Materials | Identified exit to Materials 795 | -10/Materials | Discovered new exit (range 7) 850 | -10/Materials | Entered Mines 851 | -10/Mines | Learned location of Storage (-8) 927 | -10/Mines | Discovered exit to Materials (range 8) 935 | -10/Mines | Learned location of Mines (-8) 1446 | -10/Mines | Assembled infested the area 1451 | -10/Mines | Assisted by a Guerilla fighting off Assembled 1722 | -10/Mines | Discovered exit to Materials (range 10) 1928 | -10/Mines | Entered Materials 1928 | -9/Materials | Evolved 2 slots: Propulsion x1, Utility x1 2315 | -9/Materials | Repaired Lgt. Treads 2430 | -9/Materials | Repaired Imp. Treads 2576 | -9/Materials | Repaired Lgt. Treads 2697 | -9/Materials | Discovered new exit (range 16) 2828 | -9/Materials | Build established: Scavenger-Mutant 3006 | -9/Materials | Identified exit to Mines 3209 | -9/Materials | Discovered new exit (range 15) 3808 | -9/Materials | Build established: Mutant 4280 | -9/Materials | Discovered new exit (range 16) 4584 | -9/Materials | Discovered new exit (range 16) 4654 | -9/Materials | Identified exit to Materials 4853 | -9/Materials | Entered Mines 4908 | -9/Mines | Met a Derelict bent on vengeance 5026 | -9/Mines | A weapon hastily lodged in a ceiling crevice suddenly fell to the ground 5219 | -9/Mines | A Derelict revealed a hidden shortcut to a safe place 5221 | -9/Mines | Identified exit to Zion 5240 | -9/Mines | Deemed a non-threat by the Exiles lab entrance 5241 | -9/Mines | Discovered new exit (range 5) 5246 | -9/Mines | Identified exit to Exiles 5280 | -9/Mines | Learned Materials terminal intel 5305 | -9/Mines | Discovered exit to Materials (range 7) 5318 | -9/Mines | Met a Derelict shopkeep closing up shop 5501 | -9/Mines | Discovered exit to Materials (range 11) 6099 | -9/Mines | Assisted by bots powering up and referring to "LRC-V3" 6621 | -9/Mines | Entered Exiles 6621 | -9/Exiles | Accompanied by 3 allies 6642 | -9/Exiles | Discovered new exit (range 15) 6663 | -9/Exiles | Identified exit to Mines 6693 | -9/Exiles | Met 8R-AWN 6721 | -9/Exiles | Met EX-HEX 6774 | -9/Exiles | Build established: Scavenger-Mutant 6881 | -9/Exiles | Met EX-DEC 6922 | -9/Exiles | Visited The Gauntlet 7080 | -9/Exiles | Build established: Mutant 7183 | -9/Exiles | Met EX-BIN 7204 | -9/Exiles | Aligned with FarCom system 7206 | -9/Exiles | Given EX-Vault access code 7284 | -9/Exiles | Opened EX-Vault 7296 | -9/Exiles | Found Gui. Plasma Cannon 7335 | -9/Exiles | Warned to stay clear of 0b10 Research branches 7443 | -9/Exiles | Discovered exit to Mines (range 10) 7458 | -9/Exiles | Left Exiles lab with Gui. Plasma Cannon 7458 | -9/Exiles | Entered Mines 7458 | -8/Mines | Accompanied by 3 allies 7683 | -8/Mines | Discovered exit to Materials (range 6) 7965 | -8/Mines | Discovered exit to Materials (range 7) 8199 | -8/Mines | Core integrity fell below 50% 8478 | -8/Mines | Entered Materials 8478 | -8/Materials | Evolved 2 slots: Propulsion x1, Utility x1 8479 | -8/Materials | Loaded intel: 10 terminal locations 8854 | -8/Materials | Garrison activated, responded to threat 8880 | -8/Materials | Discovered new exit (range 9) 8932 | -8/Materials | Identified exit to Factory 8999 | -8/Materials | Repaired Flak Cannon 9039 | -8/Materials | Repaired Deuterium Engine 9080 | -8/Materials | Repaired Hrd. Light Armor Plating 9293 | -8/Materials | Identified exit to Storage 9740 | -8/Materials | Build established: Hacker-Mutant 9874 | -8/Materials | Repaired Lgt. Treads 9982 | -8/Materials | Repaired Corrupted Lgt. Treads 10009 | -8/Materials | Repaired Lgt. Treads 10184 | -8/Materials | Discovered exit to Factory (range 9) 10551 | -8/Materials | Identified exit to Garrison 10554 | -8/Materials | Entered Garrison 10652 | -8/Garrison | Triggered checkpoint 10726 | -8/Garrison | Triggered checkpoint 10918 | -8/Garrison | Garrison Relay disabled 10987 | -8/Garrison | Phase Generator disabled 11208 | -8/Garrison | Triggered checkpoint 11287 | -8/Garrison | Build established: Scavenger-Mutant 11300 | -8/Garrison | Discovered new exit (range 10) 11313 | -8/Garrison | Identified exit to Materials 11324 | -8/Garrison | Discovered exit to Materials (range 60) 11324 | -8/Garrison | Discovered exit to Materials (range 8) 11324 | -8/Garrison | Discovered exit to Materials (range 74) 11385 | -8/Garrison | Installed Relay Interface Framework 11443 | -8/Garrison | Lost 3 parts (2n1u) 11486 | -8/Garrison | Garrison Relay disabled 11539 | -8/Garrison | Spotted B-75 Beast 11578 | -8/Garrison | Core integrity fell below 50% 11594 | -8/Garrison | Core integrity fell below 20% 11603 | -8/Garrison | Released all parts (5) 11630 | -8/Garrison | Lost 9 parts (2p3n2u2w) 11742 | -8/Garrison | Destroyed by Y-45 Defender with Heavy Assault Rifle Last Messages --------------- 11602_ Acquired Adv. Field Recycling Unit. 11602_ B-75 Beast misfires. 11603_ Released Adv. Drone Bay. 11603_ Released Hcp. Storage Unit. 11603_ Released Nuclear Core. 11603_ Released Imp. Coolant Injector. 11603_ Released Mak. Hammer. 11603_ >> Lost connection to Advanced Drone. 11611_ Acquired 44 matter. 11644_ Acquired Flight Unit. 11651_ Acquired Lgt. Assault Rifle. 11659_ Acquired 15 matter. 11660_ Acquired Lgt. Nuclear Core. 11669_ Acquired Surge Thruster. 11671_ Dropped Flight Unit. 11671_ Acquired Surge Thruster. 11673_ Acquired 19 matter. 11676_ System corrupted: Energy discharge (-34). 11678_ Acquired Imp. Sensor Array. 11716_ System corrupted: Energy discharge (-43). Map ----- +----------------------------------------------------+ | ???????????????# < ######??????????????????????? | | ???????????????# ##"T"#??????????????????????? | | ???????????????### "#??????????????????????? | | ?????????????????# ######??????????????????????? | | ?????????????????# #???????????????????????????? | | ????############?# #???????????????????????????? | | ????#" " "&&" #?# #???????????????????????????? | | ????#" " "&&" #?# #???????????????????????????? | | ????#"""" """" ### #???????????????????????????? | | ????# ## #???????????????????????????? | | ????#"""^ # ^## #???????????????????????????? | | ????#&&" # ## #???????????????????????????? | | ????#&&"^ # # #???????????????????????????? | | ????#""" #???????????????????????????? | | ????# ^ #???????????????????????????? | | ????#"""" """ ## #???????????????????????????? | | ????#" " " # # #???????????????????????????? | | ????#" " " " ### #???????????????????????????? | | ????############?# #???????????????????????????? | | ##???????????????# #?????????????????########### | | #???????????????# #?????????????????# | | ################# ############??????# | | #??????# | | ! Y #??????# ####### | | ####]! ##### ## ####Y#### #??????# #?????# | | #?#""" "#??# ## #??#@#??# #???####^^^####### | | ##?#######??## ### #??# #??# #???# | | ?????????????# #?# #??# #??# #???# ## ####### | | ?????????????# #?# #??# #??# ##### ## #?????# | | ??????######## #?# #??# #??# ## ## #?????# | | ??????#"""" ## ### #### #### ## ## #?????# | | ??????#" ^ ####### | | ??????#""" ###### | | ??????#######????# | | ?????????????????############ ## ## ####### | | ??????????????????????????### ## ## ###???? | | ??????????????????????????# " " #???? | | ??????????????????????????# " " #???? | | ????????????????????????### " " #???? | | ????????????????????????# " " #???? | | ####????????????????????# ### ## ## ###???? | | #???????????????###### ### ## ## ####### | | #???????????????# | | #???????????????# | | ################# ####### #### ## | | #?????#^^^##""""## ##??# ## | | ################# #?????#^^^## ## #???# ## | | #????????### ### ####### ## ##### #???# ## | | #????????## #???# ##### ## | | #????????# ## ####### ####???# ## | +----------------------------------------------------+ Best States ------------- Heat Dissipation 45 Coolant Potential 80 Energy Generation 16 Energy Capacity 290 Matter Stores 300 Matter Capacity 300 Sight Range 16 Robot Scan Range 15 Terrain Scan Range 16 Terrain Scan Density 10 Armor Coverage 230 Resistance: TH 25 Power Shielding 33 Evasion (%) 64 Recoil Reduction 4 Offensive Hacking 10 Defensive Hacking 10 Relay Coupler Types 1 Relay Coupler Value 23 Item Schematics ----------------- Deuterium Engine | -9/Materials | Scanalyzed Signal Interpreter | -9/Materials | Scanalyzed Datajack | -9/Materials | Scanalyzed Mining Claw | -9/Materials | Scanalyzed Hvy. Ion Engine | -9/Materials | Scanalyzed Cryofiber Web | -8/Materials | Scanalyzed Lgt. Treads | -8/Materials | Scanalyzed Mni. Grenade Launcher | -8/Materials | Scanalyzed Mak. Hammer | -8/Materials | Scanalyzed Robot Schematics ------------------ None Fabricated ------------ Nothing Alien Tech Used ----------------- None Achievements -------------- Armchair Analyst Assimilation Complete Challenges ------------ None Game ------ Seed GrapheneSpliceRail Manual? 0 Play Time 03:05:41 Cumulative 23.6 hours Start 2024.02.11 @ 15:48:19 End 2024.02.11 @ 23:01:15 Sessions 1 Manual Loads 0 Difficulty Rogue Special Mode None Game No. 13 Rogue 13 Adventurer 0 Explorer 0 Win Type - Total 0 Types 0/0/0/0/0/0/0/0/0 Lore% 20 Gallery% 23 Achievement% 19 Wizard Run 0 Options --------- ASCII 0 Keyboard 0 Movement Numpad Keybinds 0 Fullscreen 1 Font 18/SmallcapsGlow Map View 76x50 Tactical HUD 1 Map Filters NONE Filters NONE Steam 1 RUN: 601a46fc-4d95-4922-8736-59f4f6218cb4